[Event "Early-Titled-Tuesday-Blitz-April-02-2024"]
[Site "Chess.com"]
[Date "2024.04.02"]
[Round "3"]
[White "mightysmasher"]
[Black "AlainBruxelles"]
[Result "1/2-1/2"]
[WhiteElo "2576"]
[BlackElo "2307"]
[TimeControl "180+1"]
[EndTime "8:26:34 PDT"]
[Termination "Game drawn by 50-move rule"]

1. e4 {[%clk 0:03:00.9]} 1... c5 {[%clk 0:02:54.1]} 2. c3 {[%clk 0:03:00.7]}
2... d6 {[%clk 0:02:48.3]} 3. d4 {[%clk 0:03:00.4]} 3... Nd7 {[%clk 0:02:48]} 4.
Nf3 {[%clk 0:03:00.2]} 4... g6 {[%clk 0:02:47.8]} 5. Bd3 {[%clk 0:03:00.3]} 5...
Bg7 {[%clk 0:02:48.1]} 6. O-O {[%clk 0:03:00.8]} 6... e5 {[%clk 0:02:47.8]} 7.
dxe5 {[%clk 0:02:57.6]} 7... dxe5 {[%clk 0:02:46.6]} 8. Nbd2 {[%clk 0:02:56.7]}
8... Ngf6 {[%clk 0:02:45.8]} 9. Nc4 {[%clk 0:02:56.4]} 9... Qe7 {[%clk
0:02:44.8]} 10. Bc2 {[%clk 0:02:55.6]} 10... O-O {[%clk 0:02:41.6]} 11. Qd6
{[%clk 0:02:54.9]} 11... Qxd6 {[%clk 0:02:36.9]} 12. Nxd6 {[%clk 0:02:55.8]}
12... a6 {[%clk 0:02:34.3]} 13. Bg5 {[%clk 0:02:54.8]} 13... h6 {[%clk
0:02:30.1]} 14. Bxf6 {[%clk 0:02:52.4]} 14... Bxf6 {[%clk 0:02:28.4]} 15. Rad1
{[%clk 0:02:51.5]} 15... Nb6 {[%clk 0:02:23.4]} 16. Nxc8 {[%clk 0:02:48.3]}
16... Nxc8 {[%clk 0:02:11.9]} 17. Rd5 {[%clk 0:02:47.3]} 17... b6 {[%clk
0:02:04.7]} 18. Nxe5 {[%clk 0:02:45.9]} 18... Ne7 {[%clk 0:02:01.2]} 19. Rd7
{[%clk 0:02:44.7]} 19... Bxe5 {[%clk 0:01:51.5]} 20. Rxe7 {[%clk 0:02:44]} 20...
Rfe8 {[%clk 0:01:51.6]} 21. Rxe8+ {[%clk 0:02:33.2]} 21... Rxe8 {[%clk 0:01:51]}
22. f4 {[%clk 0:02:33.4]} 22... Bc7 {[%clk 0:01:49.4]} 23. g3 {[%clk 0:02:31.9]}
23... Rd8 {[%clk 0:01:49.4]} 24. Rf2 {[%clk 0:02:31.8]} 24... Kf8 {[%clk
0:01:46.2]} 25. Kf1 {[%clk 0:02:30.6]} 25... Ke7 {[%clk 0:01:46.1]} 26. Ke1
{[%clk 0:02:29.8]} 26... b5 {[%clk 0:01:42.6]} 27. Rd2 {[%clk 0:02:27.9]} 27...
Rxd2 {[%clk 0:01:41.4]} 28. Kxd2 {[%clk 0:02:28.8]} 28... c4 {[%clk 0:01:41]}
29. Ke2 {[%clk 0:02:26.9]} 29... h5 {[%clk 0:01:41.3]} 30. Kf3 {[%clk
0:02:26.9]} 30... Bb6 {[%clk 0:01:41.3]} 31. h3 {[%clk 0:02:26.4]} 31... Ke6
{[%clk 0:01:39.3]} 32. g4 {[%clk 0:02:26.6]} 32... hxg4+ {[%clk 0:01:39.6]} 33.
hxg4 {[%clk 0:02:27.5]} 33... f6 {[%clk 0:01:40.1]} 34. a4 {[%clk 0:02:21.3]}
34... g5 {[%clk 0:01:39.1]} 35. axb5 {[%clk 0:02:18.2]} 35... axb5 {[%clk
0:01:38.8]} 36. e5 {[%clk 0:02:13.6]} 36... gxf4 {[%clk 0:01:36.8]} 37. exf6
{[%clk 0:02:12.8]} 37... Kxf6 {[%clk 0:01:36.7]} 38. Kxf4 {[%clk 0:02:12.6]}
38... Bc5 {[%clk 0:01:32.1]} 39. g5+ {[%clk 0:02:08.7]} 39... Kg7 {[%clk
0:01:32.2]} 40. Ke5 {[%clk 0:02:07.1]} 40... b4 {[%clk 0:01:31]} 41. cxb4 {[%clk
0:02:02]} 41... Bxb4 {[%clk 0:01:31]} 42. Kd5 {[%clk 0:02:02.3]} 42... Bd2
{[%clk 0:01:30.6]} 43. g6 {[%clk 0:02:01.3]} 43... Bc1 {[%clk 0:01:30.9]} 44.
Kxc4 {[%clk 0:01:55]} 44... Bxb2 {[%clk 0:01:30.7]} 45. Kd5 {[%clk 0:01:55.6]}
45... Bc3 {[%clk 0:01:27.8]} 46. Ke6 {[%clk 0:01:56.5]} 46... Bb2 {[%clk
0:01:28.1]} 47. Kd5 {[%clk 0:01:55.9]} 47... Bc3 {[%clk 0:01:28.3]} 48. Ke4
{[%clk 0:01:56.3]} 48... Bb2 {[%clk 0:01:28.8]} 49. Kd3 {[%clk 0:01:56.5]} 49...
Ba1 {[%clk 0:01:29.1]} 50. Kc4 {[%clk 0:01:56]} 50... Bb2 {[%clk 0:01:29.2]} 51.
Bf5 {[%clk 0:01:56.4]} 51... Ba1 {[%clk 0:01:29.2]} 52. Kb3 {[%clk 0:01:56.1]}
52... Bf6 {[%clk 0:01:29]} 53. Kc2 {[%clk 0:01:56.1]} 53... Be7 {[%clk
0:01:29.2]} 54. Kc3 {[%clk 0:01:55.5]} 54... Bf6+ {[%clk 0:01:29.8]} 55. Kd3
{[%clk 0:01:55]} 55... Be7 {[%clk 0:01:30.4]} 56. Ke4 {[%clk 0:01:55.2]} 56...
Bf6 {[%clk 0:01:30.9]} 57. Kd5 {[%clk 0:01:55.9]} 57... Bb2 {[%clk 0:01:30.9]}
58. Kd6 {[%clk 0:01:55.8]} 58... Ba1 {[%clk 0:01:31.5]} 59. Ke6 {[%clk
0:01:56.2]} 59... Bb2 {[%clk 0:01:32.2]} 60. Bd3 {[%clk 0:01:56.3]} 60... Ba1
{[%clk 0:01:32.8]} 61. Bb5 {[%clk 0:01:56]} 61... Bb2 {[%clk 0:01:33.2]} 62. Be8
{[%clk 0:01:55.3]} 62... Ba1 {[%clk 0:01:33.5]} 63. Kd5 {[%clk 0:01:55]} 63...
Bb2 {[%clk 0:01:33.8]} 64. Ba4 {[%clk 0:01:54.5]} 64... Ba1 {[%clk 0:01:34.2]}
65. Kc4 {[%clk 0:01:53.6]} 65... Bb2 {[%clk 0:01:34.6]} 66. Kb3 {[%clk
0:01:53.2]} 66... Bf6 {[%clk 0:01:35.2]} 67. Kc2 {[%clk 0:01:51.2]} 67... Bg5
{[%clk 0:01:35.8]} 68. Kd1 {[%clk 0:01:51]} 68... Bf6 {[%clk 0:01:36.5]} 69. Bc2
{[%clk 0:01:50.8]} 69... Bg5 {[%clk 0:01:37]} 70. Ke2 {[%clk 0:01:50.4]} 70...
Bf6 {[%clk 0:01:37.7]} 71. Ke3 {[%clk 0:01:50.9]} 71... Be7 {[%clk 0:01:38.4]}
72. Kd4 {[%clk 0:01:51]} 72... Bf8 {[%clk 0:01:39.2]} 73. Kd5 {[%clk 0:01:51.4]}
73... Ba3 {[%clk 0:01:39.8]} 74. Ke5 {[%clk 0:01:51.6]} 74... Bb2+ {[%clk
0:01:40.4]} 75. Kf5 {[%clk 0:01:52.5]} 75... Ba1 {[%clk 0:01:40.8]} 76. Kf4
{[%clk 0:01:53.4]} 76... Bb2 {[%clk 0:01:41.2]} 77. Kf5 {[%clk 0:01:53.6]} 77...
Ba1 {[%clk 0:01:41.9]} 78. Ke6 {[%clk 0:01:54.5]} 78... Bb2 {[%clk 0:01:42.6]}
79. Kd6 {[%clk 0:01:55]} 79... Ba1 {[%clk 0:01:43.4]} 80. Kd5 {[%clk 0:01:54.9]}
80... Bb2 {[%clk 0:01:44.1]} 81. Kc4 {[%clk 0:01:55.1]} 81... Ba1 {[%clk
0:01:44.7]} 82. Kb5 {[%clk 0:01:54.4]} 82... Bf6 {[%clk 0:01:45.3]} 83. Ka6
{[%clk 0:01:54.6]} 83... Ba1 {[%clk 0:01:46]} 84. Ka7 {[%clk 0:01:54.8]} 84...
Bb2 {[%clk 0:01:46.7]} 85. Ka8 {[%clk 0:01:55.3]} 85... Ba1 {[%clk 0:01:47.1]}
86. Kb7 {[%clk 0:01:56.2]} 86... Bb2 {[%clk 0:01:47.7]} 87. Kc6 {[%clk
0:01:57.1]} 87... Ba1 {[%clk 0:01:48.3]} 88. Kd5 {[%clk 0:01:57.7]} 88... Bb2
{[%clk 0:01:49]} 89. Ke4 {[%clk 0:01:58.5]} 89... Ba1 {[%clk 0:01:49]} 90. Kf3
{[%clk 0:01:59.4]} 90... Bb2 {[%clk 0:01:49.1]} 91. Kg2 {[%clk 0:02:00.3]} 91...
Ba1 {[%clk 0:01:49.7]} 92. Kh1 {[%clk 0:02:01]} 92... Bb2 {[%clk 0:01:50.4]} 93.
Kg1 {[%clk 0:02:01.5]} 93... Ba1 {[%clk 0:01:51]} 94. Kf1 {[%clk 0:02:02.2]}
94... Bb2 {[%clk 0:01:51.8]} 1/2-1/2

[Event "Early-Titled-Tuesday-Blitz-April-02-2024"]
[Site "Chess.com"]
[Date "2024.04.02"]
[Round "3"]
[White "Fengwi"]
[Black "SmirnovTimofey2000"]
[Result "1-0"]
[WhiteElo "2356"]
[BlackElo "1946"]
[TimeControl "180+1"]
[EndTime "8:26:39 PDT"]
[Termination "Fengwi won on time"]

1. e4 {[%clk 0:02:58.1]} 1... e5 {[%clk 0:01:01.9]} 2. Nf3 {[%clk 0:02:44]} 2...
Nf6 {[%clk 0:00:33.5]} 3. Nxe5 {[%clk 0:02:28.3]} 3... d6 {[%clk 0:00:33.4]} 4.
Nf3 {[%clk 0:02:23.1]} 4... Nxe4 {[%clk 0:00:33.4]} 5. c4 {[%clk 0:02:21.4]}
5... c6 {[%clk 0:00:33.3]} 6. d4 {[%clk 0:02:21.2]} 6... d5 {[%clk 0:00:32.1]}
7. Bd3 {[%clk 0:02:07.7]} 7... Be7 {[%clk 0:00:31]} 8. O-O {[%clk 0:02:05.6]}
8... O-O {[%clk 0:00:30.7]} 9. Re1 {[%clk 0:02:05.7]} 9... Bg4 {[%clk
0:00:30.3]} 10. h3 {[%clk 0:02:02]} 10... Bh5 {[%clk 0:00:30.2]} 11. Bxe4 {[%clk
0:01:55.6]} 11... dxe4 {[%clk 0:00:29.6]} 12. Rxe4 {[%clk 0:01:56.5]} 12... Bf6
{[%clk 0:00:21.1]} 13. Nc3 {[%clk 0:01:41.4]} 13... Bg6 {[%clk 0:00:20.8]} 14.
Re1 {[%clk 0:01:40.6]} 14... Re8 {[%clk 0:00:20]} 15. Rxe8+ {[%clk 0:01:39.9]}
15... Qxe8 {[%clk 0:00:20.9]} 16. Bg5 {[%clk 0:01:36.3]} 16... Nd7 {[%clk
0:00:18.8]} 17. Qb3 {[%clk 0:01:29.7]} 17... b6 {[%clk 0:00:17.7]} 18. Re1
{[%clk 0:01:28.2]} 18... Qd8 {[%clk 0:00:17.6]} 19. Bxf6 {[%clk 0:01:25.9]}
19... Qxf6 {[%clk 0:00:18.5]} 20. Qa3 {[%clk 0:01:22.7]} 20... h6 {[%clk
0:00:15.4]} 21. Qe7 {[%clk 0:01:20.9]} 21... Qxe7 {[%clk 0:00:13.2]} 22. Rxe7
{[%clk 0:01:21.8]} 22... Nf6 {[%clk 0:00:10.8]} 23. Ne5 {[%clk 0:01:19.7]} 23...
Bh7 {[%clk 0:00:10.2]} 24. Nxc6 {[%clk 0:01:17.8]} 24... Kh8 {[%clk 0:00:11.1]}
25. d5 {[%clk 0:01:14.8]} 25... Bd3 {[%clk 0:00:09.9]} 26. d6 {[%clk 0:01:11.1]}
26... Bxc4 {[%clk 0:00:08.5]} 27. d7 {[%clk 0:01:11.1]} 27... Nxd7 {[%clk
0:00:02]} 28. Rxd7 {[%clk 0:01:12]} 1-0

[Event "Early-Titled-Tuesday-Blitz-April-02-2024"]
[Site "Chess.com"]
[Date "2024.04.02"]
[Round "3"]
[White "AlexanderKing"]
[Black "Balla_Tamas"]
[Result "0-1"]
[WhiteElo "2625"]
[BlackElo "2474"]
[TimeControl "180+1"]
[EndTime "8:26:40 PDT"]
[Termination "Balla_Tamas won by checkmate"]

1. c4 {[%clk 0:03:00.9]} 1... c5 {[%clk 0:02:55.1]} 2. g3 {[%clk 0:03:00.9]}
2... Nc6 {[%clk 0:02:52.9]} 3. Bg2 {[%clk 0:03:01.3]} 3... g6 {[%clk 0:02:53.4]}
4. Nf3 {[%clk 0:03:01.4]} 4... Bg7 {[%clk 0:02:53.5]} 5. O-O {[%clk 0:03:02.1]}
5... e6 {[%clk 0:02:52.3]} 6. Nc3 {[%clk 0:03:01.4]} 6... Nge7 {[%clk
0:02:52.4]} 7. d4 {[%clk 0:03:01.7]} 7... cxd4 {[%clk 0:02:52.2]} 8. Nb5 {[%clk
0:03:01.7]} 8... d5 {[%clk 0:02:52.4]} 9. cxd5 {[%clk 0:02:53.5]} 9... Nxd5
{[%clk 0:02:50.2]} 10. Nbxd4 {[%clk 0:02:50.3]} 10... Nxd4 {[%clk 0:02:49.4]}
11. Nxd4 {[%clk 0:02:51.2]} 11... O-O {[%clk 0:02:49.4]} 12. e3 {[%clk
0:02:27.1]} 12... b6 {[%clk 0:02:43.8]} 13. Nc6 {[%clk 0:02:22.3]} 13... Qc7
{[%clk 0:02:41]} 14. Nb4 {[%clk 0:01:26.5]} 14... Nxb4 {[%clk 0:02:19.5]} 15.
Bxa8 {[%clk 0:01:27.4]} 15... Ba6 {[%clk 0:02:19.4]} 16. Bg2 {[%clk 0:01:08.5]}
16... Rd8 {[%clk 0:02:12.2]} 17. Qb3 {[%clk 0:00:21.9]} 17... Bxf1 {[%clk
0:01:54.3]} 18. Bxf1 {[%clk 0:00:22.8]} 18... Nc2 {[%clk 0:01:54.2]} 19. Rb1
{[%clk 0:00:22.9]} 19... Rd1 {[%clk 0:01:54.3]} 20. Qb5 {[%clk 0:00:12]} 20...
Ne1 {[%clk 0:01:17.7]} 21. Bc4 {[%clk 0:00:01.6]} 21... Qb7 {[%clk 0:01:09.8]}
22. Kf1 {[%clk 0:00:01.3]} 22... Qf3 {[%clk 0:01:02.3]} 23. Be2 {[%clk 0:00:01]}
23... Qh1# {[%clk 0:00:58.1]} 0-1

[Event "Early-Titled-Tuesday-Blitz-April-02-2024"]
[Site "Chess.com"]
[Date "2024.04.02"]
[Round "3"]
[White "Kopytkin"]
[Black "Shuvalov"]
[Result "0-1"]
[WhiteElo "2406"]
[BlackElo "2611"]
[TimeControl "180+1"]
[EndTime "8:26:41 PDT"]
[Termination "Shuvalov won on time"]

1. d4 {[%clk 0:02:54]} 1... Nf6 {[%clk 0:02:59.7]} 2. Bg5 {[%clk 0:02:53.4]}
2... d5 {[%clk 0:02:59.2]} 3. e3 {[%clk 0:02:52.5]} 3... c5 {[%clk 0:02:58.7]}
4. c3 {[%clk 0:02:51.5]} 4... cxd4 {[%clk 0:02:58.2]} 5. exd4 {[%clk 0:02:51.5]}
5... Nc6 {[%clk 0:02:57.8]} 6. Nd2 {[%clk 0:02:50.8]} 6... Bf5 {[%clk
0:02:57.5]} 7. Qb3 {[%clk 0:02:50.4]} 7... Qd7 {[%clk 0:02:56]} 8. Ngf3 {[%clk
0:02:48.7]} 8... a6 {[%clk 0:02:51.1]} 9. Be2 {[%clk 0:02:37.1]} 9... e6 {[%clk
0:02:50.1]} 10. O-O {[%clk 0:02:35.3]} 10... Bd6 {[%clk 0:02:49.9]} 11. Nh4
{[%clk 0:02:24]} 11... Bg6 {[%clk 0:02:49.5]} 12. Rae1 {[%clk 0:02:08.6]} 12...
O-O {[%clk 0:02:47.4]} 13. Bxf6 {[%clk 0:01:59.3]} 13... gxf6 {[%clk 0:02:47]}
14. f4 {[%clk 0:01:59.8]} 14... f5 {[%clk 0:02:36.9]} 15. g3 {[%clk 0:01:54.4]}
15... Kg7 {[%clk 0:02:26]} 16. Qd1 {[%clk 0:01:42.8]} 16... Ne7 {[%clk
0:02:25.8]} 17. Ndf3 {[%clk 0:01:34.2]} 17... Ng8 {[%clk 0:02:25]} 18. Ne5
{[%clk 0:01:34.2]} 18... Qc7 {[%clk 0:02:22.8]} 19. c4 {[%clk 0:01:07.5]} 19...
dxc4 {[%clk 0:02:14.1]} 20. Nxc4 {[%clk 0:00:54.6]} 20... Bb4 {[%clk 0:02:12.4]}
21. Nf3 {[%clk 0:00:37.2]} 21... Bxe1 {[%clk 0:02:08.1]} 22. Qxe1 {[%clk
0:00:35.1]} 22... Rfd8 {[%clk 0:02:05.3]} 23. Nfe5 {[%clk 0:00:29.4]} 23... Rxd4
{[%clk 0:01:55]} 24. Qf2 {[%clk 0:00:17.1]} 24... Rad8 {[%clk 0:01:51.8]} 25.
Rc1 {[%clk 0:00:13.8]} 25... b5 {[%clk 0:01:43.8]} 26. Nf3 {[%clk 0:00:14]}
26... R4d5 {[%clk 0:01:34.6]} 27. Qe3 {[%clk 0:00:12.7]} 27... bxc4 {[%clk
0:01:32.4]} 28. b3 {[%clk 0:00:12.5]} 28... Qc5 {[%clk 0:01:26.3]} 29. Qxc5
{[%clk 0:00:11]} 29... Rxc5 {[%clk 0:01:27.2]} 30. Bxc4 {[%clk 0:00:11.4]} 30...
Nf6 {[%clk 0:01:24.7]} 31. Ne5 {[%clk 0:00:11.4]} 31... Ng4 {[%clk 0:01:19.5]}
32. Nd3 {[%clk 0:00:08.3]} 32... Rxd3 {[%clk 0:01:18.8]} 0-1

[Event "Early-Titled-Tuesday-Blitz-April-02-2024"]
[Site "Chess.com"]
[Date "2024.04.02"]
[Round "3"]
[White "Antosha_Chekhonte"]
[Black "Barbix1"]
[Result "1-0"]
[WhiteElo "2590"]
[BlackElo "2314"]
[TimeControl "180+1"]
[EndTime "8:26:42 PDT"]
[Termination "Antosha_Chekhonte won by checkmate"]

1. e4 {[%clk 0:02:57.6]} 1... c5 {[%clk 0:02:58.8]} 2. Nf3 {[%clk 0:02:54.1]}
2... g6 {[%clk 0:02:58.1]} 3. d4 {[%clk 0:02:53.4]} 3... cxd4 {[%clk 0:02:57.9]}
4. Qxd4 {[%clk 0:02:54.3]} 4... Nf6 {[%clk 0:02:56.6]} 5. Nc3 {[%clk 0:02:47.4]}
5... Nc6 {[%clk 0:02:56.1]} 6. Qa4 {[%clk 0:02:47.5]} 6... d6 {[%clk 0:02:56.2]}
7. e5 {[%clk 0:02:47.3]} 7... dxe5 {[%clk 0:02:55.4]} 8. Nxe5 {[%clk 0:02:47.4]}
8... Bg7 {[%clk 0:02:52]} 9. Bb5 {[%clk 0:02:36.7]} 9... O-O {[%clk 0:02:50.6]}
10. Nxc6 {[%clk 0:02:35.1]} 10... bxc6 {[%clk 0:02:51.5]} 11. Bxc6 {[%clk
0:02:36]} 11... Rb8 {[%clk 0:02:47.2]} 12. O-O {[%clk 0:02:33.5]} 12... Qc7
{[%clk 0:02:43.5]} 13. Bf4 {[%clk 0:02:27.3]} 13... e5 {[%clk 0:02:35.1]} 14.
Bg5 {[%clk 0:02:25.1]} 14... Rxb2 {[%clk 0:02:10.7]} 15. Bxf6 {[%clk 0:02:23.6]}
15... Bxf6 {[%clk 0:02:11.1]} 16. Nd5 {[%clk 0:02:24]} 16... Qd6 {[%clk
0:02:10.3]} 17. Rad1 {[%clk 0:02:20.2]} 17... Bg7 {[%clk 0:01:59]} 18. c4 {[%clk
0:02:17.3]} 18... Bg4 {[%clk 0:01:43.3]} 19. c5 {[%clk 0:02:10.2]} 19... Qxc5
{[%clk 0:01:34.2]} 20. Qxg4 {[%clk 0:02:09.2]} 20... Rxa2 {[%clk 0:01:21.3]} 21.
Rc1 {[%clk 0:01:56.1]} 21... Qa3 {[%clk 0:01:10.9]} 22. Rc3 {[%clk 0:01:52]}
22... Qb2 {[%clk 0:01:01.9]} 23. h4 {[%clk 0:01:34.5]} 23... h5 {[%clk
0:00:49.1]} 24. Qg5 {[%clk 0:01:24.3]} 24... a5 {[%clk 0:00:44.5]} 25. Rg3
{[%clk 0:01:19.1]} 25... Qc2 {[%clk 0:00:38.7]} 26. Nf6+ {[%clk 0:01:14.7]}
26... Kh8 {[%clk 0:00:31.1]} 27. Be4 {[%clk 0:01:13.7]} 27... Qe2 {[%clk
0:00:18.5]} 28. Bf3 {[%clk 0:01:07]} 28... Qc2 {[%clk 0:00:16.8]} 29. Nxh5
{[%clk 0:01:03.7]} 29... gxh5 {[%clk 0:00:16.3]} 30. Qxg7# {[%clk 0:01:02.7]}
1-0

[Event "Early-Titled-Tuesday-Blitz-April-02-2024"]
[Site "Chess.com"]
[Date "2024.04.02"]
[Round "3"]
[White "AktilekAskarovich"]
[Black "Kate1606"]
[Result "1-0"]
[WhiteElo "2399"]
[BlackElo "2169"]
[TimeControl "180+1"]
[EndTime "8:26:42 PDT"]
[Termination "AktilekAskarovich won by resignation"]

1. d4 {[%clk 0:00:25.7]} 1... d6 {[%clk 0:02:53.5]} 2. c4 {[%clk 0:00:26.6]}
2... e5 {[%clk 0:02:51.3]} 3. Nf3 {[%clk 0:00:27.5]} 3... exd4 {[%clk
0:02:47.6]} 4. Nxd4 {[%clk 0:00:28.4]} 4... g6 {[%clk 0:02:47.4]} 5. Nc3 {[%clk
0:00:29]} 5... Bg7 {[%clk 0:02:47.2]} 6. g3 {[%clk 0:00:28.4]} 6... Ne7 {[%clk
0:02:46.3]} 7. Bg2 {[%clk 0:00:29.2]} 7... O-O {[%clk 0:02:45.5]} 8. O-O {[%clk
0:00:29.4]} 8... Nbc6 {[%clk 0:02:44]} 9. Be3 {[%clk 0:00:28.8]} 9... Nxd4
{[%clk 0:02:34.5]} 10. Bxd4 {[%clk 0:00:29.7]} 10... Nc6 {[%clk 0:02:34.8]} 11.
Bxg7 {[%clk 0:00:29.9]} 11... Kxg7 {[%clk 0:02:34.5]} 12. Qd2 {[%clk 0:00:29.4]}
12... Be6 {[%clk 0:02:23]} 13. b3 {[%clk 0:00:29.3]} 13... Rb8 {[%clk
0:02:11.5]} 14. e4 {[%clk 0:00:28.5]} 14... Qd7 {[%clk 0:02:07.3]} 15. f4 {[%clk
0:00:28.2]} 15... Bh3 {[%clk 0:02:07]} 16. Nd5 {[%clk 0:00:28]} 16... Bxg2
{[%clk 0:02:06.2]} 17. Kxg2 {[%clk 0:00:28.4]} 17... f5 {[%clk 0:02:05.3]} 18.
Rae1 {[%clk 0:00:26.4]} 18... Qf7 {[%clk 0:01:28.3]} 19. Qc3+ {[%clk 0:00:24.2]}
19... Kg8 {[%clk 0:01:27.1]} 20. a4 {[%clk 0:00:24.5]} 20... Rbc8 {[%clk
0:01:24.6]} 21. b4 {[%clk 0:00:24]} 21... Nd8 {[%clk 0:01:12.4]} 22. exf5 {[%clk
0:00:23.8]} 1-0

[Event "Early-Titled-Tuesday-Blitz-April-02-2024"]
[Site "Chess.com"]
[Date "2024.04.02"]
[Round "3"]
[White "esrosenberg"]
[Black "only_strong_moves"]
[Result "0-1"]
[WhiteElo "2510"]
[BlackElo "2715"]
[TimeControl "180+1"]
[EndTime "8:26:45 PDT"]
[Termination "only_strong_moves won by resignation"]

1. d4 {[%clk 0:03:00.9]} 1... Nf6 {[%clk 0:03:00.1]} 2. c4 {[%clk 0:03:01.4]}
2... e6 {[%clk 0:03:00.7]} 3. Nc3 {[%clk 0:03:01.9]} 3... d5 {[%clk 0:03:01.4]}
4. cxd5 {[%clk 0:02:59.9]} 4... exd5 {[%clk 0:03:01.6]} 5. Bg5 {[%clk
0:02:59.2]} 5... c6 {[%clk 0:03:02.2]} 6. e3 {[%clk 0:02:55.1]} 6... h6 {[%clk
0:03:02]} 7. Bh4 {[%clk 0:02:50.5]} 7... a5 {[%clk 0:03:02.6]} 8. Bd3 {[%clk
0:02:48.9]} 8... Na6 {[%clk 0:03:03.1]} 9. a3 {[%clk 0:02:48]} 9... Nc7 {[%clk
0:03:03.7]} 10. Nf3 {[%clk 0:02:33.3]} 10... Be7 {[%clk 0:02:58.2]} 11. O-O
{[%clk 0:02:32.4]} 11... Bg4 {[%clk 0:02:46.2]} 12. Rb1 {[%clk 0:02:30.7]} 12...
O-O {[%clk 0:02:45.4]} 13. b4 {[%clk 0:02:28.7]} 13... axb4 {[%clk 0:02:46.3]}
14. axb4 {[%clk 0:02:28.7]} 14... Ne4 {[%clk 0:02:41.4]} 15. Bxe7 {[%clk
0:02:19.4]} 15... Qxe7 {[%clk 0:02:42.3]} 16. Qc2 {[%clk 0:02:08.3]} 16... Bxf3
{[%clk 0:02:38.7]} 17. gxf3 {[%clk 0:02:08.2]} 17... Ng5 {[%clk 0:02:29.2]} 18.
Kg2 {[%clk 0:01:56.6]} 18... g6 {[%clk 0:02:19.8]} 19. f4 {[%clk 0:01:49.1]}
19... Nge6 {[%clk 0:02:16.5]} 20. Ne2 {[%clk 0:01:40.3]} 20... f5 {[%clk
0:02:14.2]} 21. Kh1 {[%clk 0:01:39.5]} 21... Kh7 {[%clk 0:02:12.5]} 22. Rg1
{[%clk 0:01:39.8]} 22... Ne8 {[%clk 0:02:01]} 23. Rg3 {[%clk 0:01:32.3]} 23...
Nd6 {[%clk 0:01:57.1]} 24. Rbg1 {[%clk 0:01:31.7]} 24... Rf6 {[%clk 0:01:57.7]}
25. R1g2 {[%clk 0:01:10.8]} 25... Ne4 {[%clk 0:01:57.3]} 26. Bxe4 {[%clk
0:01:05.8]} 26... fxe4 {[%clk 0:01:58.2]} 27. f3 {[%clk 0:00:57.4]} 27... Ra1+
{[%clk 0:01:47.3]} 28. Ng1 {[%clk 0:00:57.1]} 28... Ng7 {[%clk 0:01:41.5]} 29.
fxe4 {[%clk 0:00:53.6]} 29... Qxe4 {[%clk 0:01:42.4]} 30. Qxe4 {[%clk
0:00:49.7]} 30... dxe4 {[%clk 0:01:43.3]} 31. Rb2 {[%clk 0:00:25.4]} 31... Nf5
{[%clk 0:01:42.5]} 32. Rh3 {[%clk 0:00:23.9]} 32... Nd6 {[%clk 0:01:35.6]} 33.
Kg2 {[%clk 0:00:21.8]} 33... Rf5 {[%clk 0:01:34.3]} 34. Ne2 {[%clk 0:00:20.1]}
34... Rb5 {[%clk 0:01:33.9]} 35. Nc3 {[%clk 0:00:15.2]} 35... Rf5 {[%clk
0:01:34.3]} 36. Kf2 {[%clk 0:00:10.8]} 36... g5 {[%clk 0:01:34]} 37. Ke2 {[%clk
0:00:09.8]} 37... gxf4 {[%clk 0:01:33.5]} 38. exf4 {[%clk 0:00:10.7]} 38... Rxf4
{[%clk 0:01:34.4]} 39. d5 {[%clk 0:00:10.3]} 39... Raf1 {[%clk 0:01:29.4]} 40.
Ke3 {[%clk 0:00:04.9]} 40... Nc4+ {[%clk 0:01:29]} 0-1

[Event "Early-Titled-Tuesday-Blitz-April-02-2024"]
[Site "Chess.com"]
[Date "2024.04.02"]
[Round "3"]
[White "DeArron_Fox"]
[Black "DanielSaiz01"]
[Result "1-0"]
[WhiteElo "2499"]
[BlackElo "2260"]
[TimeControl "180+1"]
[EndTime "8:26:57 PDT"]
[Termination "DeArron_Fox won on time"]

1. d4 {[%clk 0:03:00.9]} 1... Nf6 {[%clk 0:01:02.5]} 2. c4 {[%clk 0:02:56.7]}
2... c5 {[%clk 0:01:02.5]} 3. d5 {[%clk 0:02:56.3]} 3... b5 {[%clk 0:01:03.1]}
4. cxb5 {[%clk 0:02:57.2]} 4... a6 {[%clk 0:01:03.3]} 5. bxa6 {[%clk 0:02:58.1]}
5... e6 {[%clk 0:01:03]} 6. dxe6 {[%clk 0:02:57.1]} 6... fxe6 {[%clk 0:01:02.7]}
7. Nf3 {[%clk 0:02:54.5]} 7... Be7 {[%clk 0:00:57.7]} 8. g3 {[%clk 0:02:54.8]}
8... d5 {[%clk 0:00:57]} 9. Bg2 {[%clk 0:02:54.7]} 9... O-O {[%clk 0:00:57.6]}
10. O-O {[%clk 0:02:54.3]} 10... Nc6 {[%clk 0:00:57]} 11. Re1 {[%clk 0:01:55.9]}
11... Bxa6 {[%clk 0:00:52.4]} 12. Nbd2 {[%clk 0:01:43.7]} 12... e5 {[%clk
0:00:41.1]} 13. e4 {[%clk 0:01:25.2]} 13... d4 {[%clk 0:00:18.1]} 14. a3 {[%clk
0:00:59.7]} 14... Qc7 {[%clk 0:00:14.2]} 15. Qc2 {[%clk 0:00:44.5]} 15... Na5
{[%clk 0:00:07]} 16. b4 {[%clk 0:00:44.2]} 16... Nb7 {[%clk 0:00:03.9]} 17. b5
{[%clk 0:00:32.5]} 17... Bxb5 {[%clk 0:00:02.4]} 18. Qb3+ {[%clk 0:00:32.8]}
18... Kh8 {[%clk 0:00:01.2]} 19. Qxb5 {[%clk 0:00:33.1]} 1-0